fUSD/lending_fUSD_20260423
["ID","MTS","AMOUNT","RATE_DAILY","PERIOD"]
[421018732,1776928293508,-2023.39,0.00013698,2]
[421018733,1776928293518,-2023.39,0.00013698,2]
[421018734,1776928293529,-2023.39,0.00013698,2]
[421018735,1776928293538,-2023.39,0.00013698,2]
[421018736,1776928293548,-2023.39,0.00013698,2]
[421018737,1776928293559,-2023.39,0.00013698,2]
[421018738,1776928293568,-2023.39,0.00013698,2]
[421018739,1776928293578,-2023.39,0.00013698,2]
[421018740,1776928293588,-2023.57146612,0.00013698,2]
[421018741,1776928293598,-2000.0,0.00013699,2]
[421018742,1776928293607,-500.0,0.00013699,2]
[421018743,1776928293617,-180.0,0.00013699,2]
[421018744,1776928293627,-200.0,0.00013699,2]
[421018745,1776928293637,-718.31,0.00013699,2]
[421018746,1776928293647,-166.66,0.00013699,2]
[421018747,1776928293657,-16409.78,0.00013699,2]
[421018748,1776928293667,-287.402566,0.00013699,2]
[421018749,1776928293677,-287.402566,0.00013699,2]
[421018750,1776928293697,-287.402566,0.00013699,2]
[421018751,1776928293709,-287.402566,0.00013699,2]
[421018752,1776928293720,-287.402566,0.00013699,2]
[421018753,1776928293731,-287.402566,0.00013699,2]
[421018754,1776928293741,-287.402566,0.00013699,2]
[421018755,1776928293751,-287.402566,0.00013699,2]
[421018756,1776928293761,-287.402566,0.00013699,2]
[421018757,1776928293771,-287.402566,0.00013699,2]
[421018758,1776928293782,-287.402566,0.00013699,2]
[421018759,1776928293793,-287.402566,0.00013699,2]
[421018760,1776928293803,-287.402566,0.00013699,2]
[421018761,1776928293814,-287.402566,0.00013699,2]
[421018762,1776928293824,-287.402566,0.00013699,2]
[421018763,1776928293834,-287.402566,0.00013699,2]
[421018764,1776928293844,-287.402566,0.00013699,2]
[421018765,1776928293855,-287.402566,0.00013699,2]
[421018766,1776928293866,-287.402566,0.00013699,2]
[421018767,1776928293876,-287.402574,0.00013699,2]
[421018768,1776928293887,-503.46,0.00013699,2]
[421018769,1776928293897,-419.55,0.00013699,2]
[421018770,1776928293907,-349.63,0.00013699,2]
[421018771,1776928293917,-291.36,0.00013699,2]
[421018772,1776928293928,-242.8,0.00013699,2]
[421018773,1776928293937,-202.33,0.00013699,2]
[421018774,1776928293947,-168.61,0.00013699,2]
[421018775,1776928293957,-843.07,0.00013699,2]
[421018776,1776928293967,-1999.152745,0.00013699,2]
[421018777,1776928293977,-1999.152745,0.00013699,2]
[421018778,1776928293987,-1999.152745,0.00013699,2]
[421018779,1776928293997,-1999.152745,0.00013699,2]
[421018780,1776928294008,-1999.152745,0.00013699,2]
[421018781,1776928294018,-1999.152745,0.00013699,2]
[421018782,1776928294029,-1999.152745,0.00013699,2]
[421018783,1776928294039,-1999.152745,0.00013699,2]
[421018784,1776928294050,-1999.152745,0.00013699,2]
[421018785,1776928294060,-1999.152745,0.00013699,2]
[421018786,1776928294070,-1999.152745,0.00013699,2]
[421018787,1776928294086,-1999.152745,0.00013699,2]
[421018788,1776928294097,-1999.152745,0.00013699,2]
[421018789,1776928294108,-1999.152745,0.00013699,2]
[421018790,1776928294118,-1999.152745,0.00013699,2]
[421018791,1776928294129,-1999.152745,0.00013699,2]
[421018792,1776928294140,-1999.152745,0.00013699,2]
[421018793,1776928294154,-1999.152745,0.00013699,2]
[421018794,1776928294165,-1999.152745,0.00013699,2]
[421018795,1776928294175,-1999.152742,0.00013699,2]
[421018796,1776928294185,-543.912634,0.00013699,2]
[421018797,1776928294196,-543.912634,0.00013699,2]
[421018798,1776928294207,-543.912634,0.00013699,2]
[421018799,1776928294217,-543.912634,0.00013699,2]
[421018800,1776928294228,-543.912634,0.00013699,2]
[421018801,1776928294239,-543.912634,0.00013699,2]
[421018802,1776928294249,-543.912634,0.00013699,2]
[421018803,1776928294260,-543.912634,0.00013699,2]
[421018804,1776928294271,-543.912634,0.00013699,2]
[421018805,1776928294281,-543.912634,0.00013699,2]
[421018806,1776928294291,-543.912634,0.00013699,2]
[421018807,1776928294301,-543.912634,0.00013699,2]
[421018808,1776928294312,-543.912634,0.00013699,2]
[421018809,1776928294322,-543.912634,0.00013699,2]
[421018810,1776928294332,-543.912634,0.00013699,2]
[421018811,1776928294342,-543.912634,0.00013699,2]
[421018812,1776928294352,-543.912634,0.00013699,2]
[421018813,1776928294362,-543.912634,0.00013699,2]
[421018814,1776928294372,-543.912634,0.00013699,2]
[421018815,1776928294381,-543.912639,0.00013699,2]
[421018816,1776928294391,-153.0,0.00013699,2]
[421018817,1776928294401,-153.0,0.00013699,2]
[421018818,1776928294412,-153.0,0.00013699,2]
[421018819,1776928294423,-153.0,0.00013699,2]
[421018820,1776928294434,-153.0,0.00013699,2]
[421018821,1776928294444,-153.0,0.00013699,2]
[421018822,1776928294455,-153.0,0.00013699,2]
[421018823,1776928294467,-153.0,0.00013699,2]
[421018824,1776928294477,-263.54529692,0.00013699,2]
[421018825,1776928294492,-166.8241905,0.00013699,2]
[421018826,1776928294503,-1000.0,0.00013699,7]
[421018827,1776928294513,-153.0,0.00013699,2]
[421018828,1776928294524,-1000.0,0.00013699,2]
[421018829,1776928294537,-231.97730224,0.00013699,2]
[421018830,1776928294547,-227.0,0.00013699,2]
[421018831,1776928294558,-150.0,0.00013699,2]
[421018832,1776928294569,-150.0,0.00013699,2]
[421018833,1776928294580,-219.3744441,0.000137,2]
[421018834,1776928294591,-150.0,0.000137,2]
[421018835,1776928294602,-150.0,0.000137,2]
[421018836,1776928294613,-150.28837289,0.000137,2]
[421018837,1776928294624,-2958.25,0.000137,2]
[421018838,1776928294635,-346377.75,0.000137,2]
[421018839,1776928294646,-3185.3,0.000137,2]
[421018840,1776928294659,-166.66,0.00013836,2]
[421018841,1776928294670,-150.0,0.00013889,7]
[421018842,1776928294682,-400.0,0.0001392,2]
[421018843,1776928294695,-400.0,0.0001392,2]
[421018844,1776928294705,-400.0,0.0001392,2]
[421018845,1776928294716,-166.66,0.00013973,2]
[421018846,1776928294726,-14237.58857431,0.0001399,2]
[421018847,1776928294736,-1500.0,0.00014,2]
[421018848,1776928294748,-200.0,0.00014,2]
[421018849,1776928294759,-50000.0,0.00014,2]
[421018850,1776928294770,-350.0,0.00014016,2]
[421018851,1776928294780,-350.0,0.00014016,2]
[421018852,1776928294791,-350.0,0.00014016,2]
[421018853,1776928294801,-350.0,0.00014016,2]
[421018854,1776928294811,-294.0,0.00014016,2]
[421018855,1776928294822,-158.16,0.00014038,2]
[421018856,1776928294832,-371.59892725,0.000141,21]
[421018857,1776928294842,-638.24,0.00014105,2]
[421018858,1776928294852,-166.66,0.0001411,2]
[421018859,1776928294863,-504.35962451,0.00014113,3]
[421018860,1776928294878,-5073.0,0.00014124,2]
[421018861,1776928294889,-166.66,0.00014247,2]
[421018862,1776928294899,-4979.0,0.00014267,2]
[421018863,1776928294909,-346208.64245935,0.000143,2]
[421018864,1776928297513,-6025.391299,0.00011973,2]
[421018865,1776928297527,-6025.391299,0.00011973,2]
[421018866,1776928297538,-6025.391299,0.00012,2]
[421018867,1776928297548,-6025.391299,0.00012,2]
[421018868,1776928297558,-6025.391299,0.00012,2]
[421018869,1776928297567,-6025.391299,0.00012,2]
[421018870,1776928297577,-169.10754065,0.000143,2]
[421018871,1776928297587,-3185.3,0.000143,2]
[421018872,1776928297596,-150.0,0.0001434,2]
[421018873,1776928297606,-1292.0,0.00014376,2]
[421018874,1776928297617,-438.0,0.00014376,2]
[421018875,1776928297627,-1619.0,0.00014376,2]
[421018876,1776928297638,-3256.0,0.00014376,2]
[421018877,1776928297647,-3579.0,0.00014376,2]
[421018878,1776928297657,-783.0,0.00014376,2]
[421018879,1776928297667,-590.0,0.00014376,2]
[421018880,1776928297677,-4227.0,0.00014376,2]
[421018881,1776928297687,-1194.0,0.00014376,2]
[421018882,1776928297697,-916.0,0.00014376,2]
[421018883,1776928297707,-166.66,0.00014384,2]
[421018884,1776928297717,-10224.12285075,0.0001439,2]
[421018885,1776928297759,-3177.664601,0.00012,2]
[421018886,1776928297771,-507.0,0.00012,2]
[421018887,1776928297783,-2340.726698,0.00012,2]
[421018888,1776928297793,-199.34839051,0.0001439,2]
[421018889,1776928297803,-1245.93491149,0.00014398,2]
[421018890,1776928299150,152.0,7.007e-05,30]
[421018891,1776928299369,152.0,7.014e-05,30]
[421018892,1776928373111,-500.0,6.583e-05,2]
[421018893,1776928373142,-300.0,6.589e-05,2]
[421018894,1776928373173,-300.0,6.589e-05,2]
[421018895,1776928373203,-500.0,6.589e-05,2]
[421018896,1776928373232,-500.0,6.589e-05,2]
[421018897,1776928373262,-500.0,6.589e-05,2]
[421018898,1776928373293,-500.0,6.589e-05,2]
[421018899,1776928373322,-500.0,6.589e-05,2]
[421018900,1776928373353,-500.0,6.589e-05,2]
[421018901,1776928373384,-500.0,6.589e-05,2]
[421018902,1776928373415,-359.65719642,6.589e-05,2]
[421018903,1776928373569,-80.69560716,6.589e-05,2]
[421018904,1776928373599,-500.0,6.589e-05,2]
[421018905,1776928373635,-500.0,6.589e-05,2]
[421018906,1776928373670,-500.0,6.589e-05,2]
[421018907,1776928373705,-500.0,6.589e-05,2]
[421018908,1776928373742,-500.0,6.589e-05,2]
[421018909,1776928373777,-500.0,6.589e-05,2]
[421018910,1776928373813,-500.0,6.589e-05,2]
[421018911,1776928373849,-500.0,6.589e-05,2]
[421018912,1776928373884,-500.0,6.589e-05,2]
[421018913,1776928373924,-338.61878568,6.589e-05,2]
[421018914,1776928374050,-161.38121432,6.589e-05,2]
[421018915,1776928374086,-500.0,6.589e-05,2]
[421018916,1776928374122,-500.0,6.589e-05,2]
[421018917,1776928374157,-500.0,6.589e-05,2]
[421018918,1776928374192,-500.0,6.589e-05,2]
[421018919,1776928374227,-500.0,6.589e-05,2]
[421018920,1776928374268,-500.0,6.589e-05,2]
[421018921,1776928374304,-593.57982576,6.589e-05,2]
[421018922,1776928374340,-500.0,6.589e-05,2]
[421018923,1776928374376,-500.0,6.589e-05,2]
[421018924,1776928374455,-500.0,6.589e-05,2]
[421018925,1776928374495,-500.0,6.589e-05,2]
[421018926,1776928374530,-500.0,6.589e-05,2]
[421018927,1776928374566,-500.0,6.589e-05,2]
[421018928,1776928374603,-500.0,6.589e-05,2]
[421018929,1776928374639,-500.0,6.589e-05,2]
[421018930,1776928374677,-500.0,6.589e-05,2]
[421018931,1776928374713,-500.0,6.589e-05,2]
[421018932,1776928374748,-500.0,6.589e-05,2]
[421018933,1776928374789,-500.0,6.589e-05,2]
[421018934,1776928374915,-466.88799393,6.589e-05,2]
[421018935,1776928374951,-500.0,6.589e-05,2]
[421018936,1776928374988,-500.0,6.589e-05,2]
[421018937,1776928375025,-500.0,6.589e-05,2]
[421018938,1776928375061,-500.0,6.589e-05,2]
[421018939,1776928375098,-500.0,6.589e-05,2]
[421018940,1776928375134,-500.0,6.589e-05,2]
[421018941,1776928375172,-500.0,6.589e-05,2]
[421018942,1776928375209,-500.0,6.589e-05,2]
[421018943,1776928375246,-500.0,6.589e-05,2]
[421018944,1776928375393,-500.0,6.589e-05,2]
[421018945,1776928375432,-500.0,6.589e-05,2]
[421018946,1776928375470,-500.0,6.589e-05,2]
[421018947,1776928375507,-500.0,6.589e-05,2]
[421018948,1776928375544,-500.0,6.589e-05,2]
[421018949,1776928375584,-500.0,6.589e-05,2]
[421018950,1776928375620,-500.0,6.589e-05,2]
[421018951,1776928375658,-500.0,6.589e-05,2]
[421018952,1776928375697,-450.0,6.589e-05,2]
[421018953,1776928375734,-500.0,6.589e-05,2]
[421018954,1776928377729,-341.96857922,6.59e-05,2]
[421018955,1776928377749,-500.0,6.59e-05,2]
[421018956,1776928377764,-100.01,6.59e-05,2]
[421018957,1776928377789,-10000.01,6.59e-05,2]
[421018958,1776928377813,-10000.01,6.59e-05,2]
[421018959,1776928377960,-10000.01,6.59e-05,2]
[421018960,1776928378047,-10000.01,6.59e-05,2]
[421018961,1776928378102,-10000.01,6.59e-05,2]
[421018962,1776928378117,-10000.01,6.59e-05,2]
[421018963,1776928378144,-10000.01,6.59e-05,2]
[421018964,1776928401208,-3417.66513262,6.589e-05,2]
[421018965,1776928401233,-3164.67973476,6.589e-05,2]
[421018966,1776928401362,-10000.01,6.59e-05,2]
[421018967,1776928401430,-10000.01,6.59e-05,2]
[421018968,1776928401551,-10000.01,6.59e-05,2]
[421018969,1776928401654,-10000.01,6.59e-05,2]
[421018970,1776928401813,-10000.01,6.59e-05,2]
[421018971,1776928401914,-10000.01,6.59e-05,2]
[421018972,1776928402040,-10000.01,6.59e-05,2]
[421018973,1776928402176,-10000.01,6.59e-05,2]
[421018974,1776928410344,-10000.01,6.59e-05,2]
[421018975,1776928410472,-10000.01,6.59e-05,2]
[421018976,1776928410580,-10000.01,6.59e-05,2]
[421018977,1776928410733,-10000.01,6.59e-05,2]
[421018978,1776928410854,-10000.01,6.59e-05,2]
[421018979,1776928410957,-10000.01,6.59e-05,2]
[421018980,1776928411071,-10000.01,6.59e-05,2]
[421018981,1776928411198,-10000.01,6.59e-05,2]
[421018982,1776928411323,-10000.01,6.59e-05,2]
[421018983,1776928432596,-251.57418874,6.589e-05,2]
[421018984,1776928432932,-9496.86162252,6.59e-05,2]
[421018985,1776928432947,-10000.01,6.59e-05,2]
[421018986,1776928432962,-10000.01,6.59e-05,2]
[421018987,1776928432976,-10000.01,6.59e-05,2]
[421018988,1776928432995,-10000.01,6.59e-05,2]
[421018989,1776928433011,-10000.01,6.59e-05,2]
[421018990,1776928433026,-10000.01,6.59e-05,2]
[421018991,1776928433040,-10000.01,6.59e-05,2]
[421018992,1776928433055,-10000.01,6.59e-05,2]
[421018993,1776928436702,-10000.01,6.59e-05,2]
[421018994,1776928436813,-10000.01,6.59e-05,2]
[421018995,1776928436977,-10000.01,6.59e-05,2]
[421018996,1776928437069,-10000.01,6.59e-05,2]
[421018997,1776928437211,-10000.01,6.59e-05,2]
[421018998,1776928437408,-10000.01,6.59e-05,2]
[421018999,1776928437529,-10000.01,6.59e-05,2]
[421019000,1776928437671,-10000.01,6.59e-05,2]
[421019001,1776928437807,-10000.01,6.59e-05,2]
[421019002,1776928457926,-1904.842887,6.59e-05,2]
[421019003,1776928458084,-6190.324226,6.59e-05,2]
[421019004,1776928458099,-10000.01,6.59e-05,2]
[421019005,1776928458114,-10000.01,6.59e-05,2]
[421019006,1776928458133,-10000.01,6.59e-05,2]
[421019007,1776928458148,-10000.01,6.59e-05,2]
[421019008,1776928458177,-10000.01,6.59e-05,2]
[421019009,1776928458191,-10000.01,6.59e-05,2]
[421019010,1776928458210,-10000.01,6.59e-05,2]
[421019011,1776928458253,-10000.01,6.59e-05,2]
[421019012,1776928459957,-10000.01,6.59e-05,2]
[421019013,1776928482249,-166.0,6.59e-05,3]
[421019014,1776928482521,-9668.01,6.59e-05,2]
[421019015,1776928482542,-10000.01,6.59e-05,2]
[421019016,1776928552971,-152.0,6.591e-05,7]
[421019017,1776928553000,-152.0,6.591e-05,7]
[421019018,1776928553028,-152.0,6.66e-05,7]
[421019019,1776928553056,-152.0,6.66e-05,7]
[421019020,1776928553083,-152.0,6.66e-05,7]
[421019021,1776928553110,-152.0,6.667e-05,7]
[421019022,1776928553138,-152.0,6.667e-05,7]
[421019023,1776928553175,-152.0,6.667e-05,7]
[421019024,1776928553204,-152.0,6.667e-05,7]
[421019025,1776928587920,-202.74558094,6.589e-05,2]
[421019026,1776928587947,-2929.25441906,6.59e-05,2]
[421019027,1776928708934,-10000.0,6.59e-05,2]
[421019028,1776928710152,-10000.0,6.59e-05,2]
[421019029,1776928711140,-10000.0,6.59e-05,2]
[421019030,1776928712229,-10000.0,6.59e-05,2]
[421019031,1776928716961,-10000.0,6.59e-05,2]
[421019032,1776928717531,-3037.1919532,6.59e-05,2]
[421019033,1776928735523,-380.42163313,6.59e-05,2]
[421019034,1776928737044,-216.626,6.59e-05,2]
[421019035,1776928741466,-427.974,6.59e-05,2]
[421019036,1776928743312,-500.0,6.59e-05,2]
[421019037,1776928745492,-500.00025668,6.59e-05,2]
[421019038,1776928747607,-200.0,6.59e-05,2]
[421019039,1776928750093,-500.0,6.59e-05,2]
[421019040,1776928753513,-180.69662149,6.59e-05,2]
[421019041,1776928766837,-222.256,6.59e-05,2]
[421019042,1776928775224,-9276.5973553,6.59e-05,2]
[421019043,1776928796348,-2559.74399258,6.583e-05,2]
[421019044,1776928796370,-166.0,6.59e-05,3]
[421019045,1776928796392,-250.0,6.638e-05,2]
[421019046,1776928913173,-1367.8926148,6.59e-05,2]
[421019047,1776928913198,-3427.6200342,6.59e-05,2]
[421019055,1776929282941,180.86,6.126e-05,2]
[421019056,1776929323937,-300.0,6.589e-05,2]
[421019057,1776929323960,-150.0,6.589e-05,2]
[421019058,1776929323984,-9550.0,6.59e-05,2]
[421019059,1776929325287,-10000.0,6.59e-05,2]
[421019060,1776929326562,-10000.0,6.59e-05,2]
[421019061,1776929329468,-10000.0,6.59e-05,2]
[421019062,1776929334659,-4718.6285408,6.59e-05,2]
[421019063,1776929334683,-4397.7537398,6.59e-05,2]
[421019064,1776929334706,-883.6177194,6.59e-05,2]
[421019065,1776929337053,-1415.7336799,6.59e-05,2]
[421019066,1776929337077,-283.66570583,6.59e-05,2]
[421019067,1776929337101,-4352.0964743,6.59e-05,2]
[421019068,1776929337126,-3023.2843443,6.59e-05,2]
[421019069,1776929337153,-152.0,6.671e-05,7]
[421019070,1776929337180,-152.0,6.671e-05,7]
[421019071,1776929337207,-152.0,6.671e-05,7]
[421019072,1776929337233,-152.0,6.671e-05,7]
[421019073,1776929337259,-152.0,6.671e-05,7]
[421019074,1776929341153,165.21979567,6.589e-05,2]
[421019075,1776929344860,-134.78020433,6.589e-05,2]
[421019081,1776929399019,-500.0,6.9e-05,2]
[421019082,1776929399040,-150.0,7.116e-05,2]
[421019083,1776929399062,-1200.0,7.15e-05,2]
[421019084,1776929399086,-8150.0,7.151e-05,2]
[421019085,1776929400246,-10000.0,7.151e-05,2]
[421019086,1776929400665,-10000.0,7.151e-05,2]
[421019087,1776929401069,-10000.0,7.151e-05,2]
[421019088,1776929401490,-1200.0,7.15e-05,2]
[421019089,1776929401515,-8800.0,7.151e-05,2]
[421019090,1776929401865,-300.0,7.15e-05,2]
[421019091,1776929401891,-9700.0,7.151e-05,2]
[421019092,1776929403405,-150.0,7.15e-05,2]
[421019093,1776929403431,-9850.0,7.151e-05,2]
[421019094,1776929405879,-10000.0,7.151e-05,2]
[421019095,1776929405942,-10000.0,7.151e-05,2]
[421019096,1776929407658,-10000.0,7.151e-05,2]
[421019097,1776929418031,-300.0,7.15e-05,2]
[421019098,1776929418055,-9700.0,7.151e-05,2]
[421019099,1776929418122,-10000.0,7.151e-05,2]
[421019100,1776929420444,-942.39089339,7.15e-05,2]
[421019101,1776929420472,-942.39089339,7.15e-05,2]
[421019102,1776929420497,-942.39089339,7.15e-05,2]
[421019103,1776929420523,-942.39089339,7.15e-05,2]
[421019104,1776929420548,-942.39089339,7.15e-05,2]
[421019105,1776929420573,-942.39089339,7.15e-05,2]
[421019106,1776929420598,-942.39089339,7.15e-05,2]
[421019107,1776929420623,-942.39089339,7.15e-05,2]
[421019108,1776929420648,-942.39089339,7.15e-05,2]
[421019109,1776929420673,-942.39089339,7.15e-05,2]
[421019110,1776929420698,-576.0910661,7.15e-05,2]
[421019111,1776929420872,-366.29982729,7.15e-05,2]
[421019112,1776929420898,-942.39089339,7.15e-05,2]
[421019113,1776929420924,-942.39089339,7.15e-05,2]
[421019114,1776929420950,-942.39089339,7.15e-05,2]
[421019115,1776929420975,-942.39089339,7.15e-05,2]
[421019116,1776929421001,-942.39089339,7.15e-05,2]
[421019117,1776929421027,-942.39089339,7.15e-05,2]
[421019118,1776929421052,-942.39089339,7.15e-05,2]
[421019119,1776929421609,-942.39089339,7.15e-05,2]
[421019120,1776929421637,-942.39089339,7.15e-05,2]
[421019121,1776929421662,-942.39089339,7.15e-05,2]
[421019122,1776929421687,-209.79123881,7.15e-05,2]
[421019123,1776929421869,-732.59965458,7.15e-05,2]
[421019124,1776929421896,-942.39089339,7.15e-05,2]
[421019125,1776929421922,-942.39089339,7.15e-05,2]
[421019126,1776929421948,-942.39089339,7.15e-05,2]
[421019127,1776929421975,-942.39089339,7.15e-05,2]
[421019128,1776929422003,-942.39089339,7.15e-05,2]
[421019129,1776929422037,-942.39089339,7.15e-05,2]
[421019130,1776929422066,-942.39089339,7.15e-05,2]
[421019131,1776929422094,-942.39089339,7.15e-05,2]
[421019132,1776929422122,-942.39089339,7.15e-05,2]
[421019133,1776929422150,-785.88230491,7.15e-05,2]
[421019134,1776929422797,-156.50858848,7.15e-05,2]
[421019135,1776929422824,-942.39089339,7.15e-05,2]
[421019136,1776929422852,-942.39089339,7.15e-05,2]
[421019137,1776929422880,-942.39089339,7.15e-05,2]
[421019138,1776929422909,-942.39089339,7.15e-05,2]
[421019139,1776929422939,-942.39089339,7.15e-05,2]
[421019140,1776929422966,-942.39089339,7.15e-05,2]
[421019141,1776929422993,-942.39089339,7.15e-05,2]
[421019142,1776929423026,-942.39089339,7.15e-05,2]
[421019143,1776929423058,-942.39089339,7.15e-05,2]
[421019144,1776929423085,-942.39089339,7.15e-05,2]
[421019145,1776929423114,-419.58247762,7.15e-05,2]
[421019146,1776929423462,-522.80841577,7.15e-05,2]
[421019147,1776929423489,-942.39089339,7.15e-05,2]
[421019148,1776929423521,-942.39089339,7.15e-05,2]
[421019149,1776929423547,-942.39089339,7.15e-05,2]
[421019150,1776929423572,-942.39089339,7.15e-05,2]
[421019151,1776929423596,-5707.62801067,7.151e-05,2]
[421019152,1776929424047,-10000.0,7.151e-05,2]
[421019153,1776929424455,-6009.50768933,7.151e-05,2]
[421019154,1776929424476,-250.0,7.2e-05,2]
[421019155,1776929424496,-151.0,7.248e-05,2]
[421019156,1776929424518,-151.0,7.248e-05,2]
[421019157,1776929424538,-151.4083656,7.248e-05,2]
[421019158,1776929424560,-250.0,7.249e-05,2]
[421019159,1776929424580,-455.36899362,7.25e-05,2]
[421019160,1776929424601,-500.0,7.25e-05,2]
[421019161,1776929424622,-500.09064536,7.25e-05,2]
[421019162,1776929424643,-794.03,7.25e-05,2]
[421019163,1776929424664,-174.25222048,7.25e-05,2]
[421019164,1776929424685,-500.0,7.25e-05,2]
[421019165,1776929424706,-113.34208561,7.25e-05,2]
[421019166,1776929424746,-386.65791439,7.25e-05,2]
[421019167,1776929424767,-500.0,7.25e-05,2]
[421019168,1776929424788,-332.32819988,7.25e-05,2]
[421019169,1776929424809,-500.0,7.25e-05,2]
[421019170,1776929424830,-500.0,7.25e-05,2]
[421019171,1776929424851,-500.0,7.25e-05,2]
[421019172,1776929424873,-500.0,7.25e-05,2]
[421019173,1776929424895,-6781.01388573,7.251e-05,2]
[421019174,1776929425176,-10000.0,7.251e-05,2]
[421019175,1776929425486,-10000.0,7.251e-05,2]
[421019176,1776929426135,-10000.0,7.251e-05,2]
[421019177,1776929426581,-10000.0,7.251e-05,2]
[421019178,1776929427072,-10000.0,7.251e-05,2]
[421019179,1776929427479,-4044.54611427,7.251e-05,2]
[421019180,1776929427501,-999.99,7.251e-05,2]
[421019181,1776929427521,-4955.46388573,7.251e-05,2]
[421019182,1776929427908,-5044.52611427,7.251e-05,2]
[421019183,1776929427929,-4955.47388573,7.251e-05,2]
[421019184,1776929430343,-10000.0,7.251e-05,2]
[421019185,1776929430588,-9399.61611427,7.251e-05,2]
[421019186,1776929430610,-299.99,7.251e-05,2]
[421019187,1776929430631,-300.39388573,7.251e-05,2]
[421019192,1776929431580,-1570.65148898,7.15e-05,2]
[421019193,1776929431589,-1570.65148898,7.15e-05,2]
[421019195,1776929431599,-1570.65148898,7.15e-05,2]
[421019196,1776929431608,-1570.65148898,7.15e-05,2]
[421019197,1776929431618,-1570.65148898,7.15e-05,2]
[421019198,1776929431628,-1570.65148898,7.15e-05,2]
[421019199,1776929431637,-1570.65148898,7.15e-05,2]
[421019203,1776929432328,-1570.65148898,7.15e-05,2]
[421019204,1776929432344,-596.56626148,7.15e-05,2]
[421019205,1776929432357,-974.0852275,7.15e-05,2]
[421019206,1776929432366,-264.14104996,7.15e-05,2]
[421019207,1776929432378,-1306.51043902,7.15e-05,2]
[421019208,1776929432387,-1570.65148898,7.15e-05,2]
[421019209,1776929432397,-1570.65148898,7.15e-05,2]
[421019210,1776929432406,-1570.65148898,7.15e-05,2]
[421019211,1776929432415,-1570.65148898,7.15e-05,2]
[421019212,1776929432425,-1570.65148898,7.15e-05,2]
[421019213,1776929432434,-1570.65148898,7.15e-05,2]
[421019214,1776929432443,-1570.65148898,7.15e-05,2]
[421019215,1776929432452,-1570.65148898,7.15e-05,2]
[421019216,1776929432462,-1570.65148898,7.15e-05,2]
[421019217,1776929432472,-1570.65148898,7.15e-05,2]
[421019218,1776929432481,-1570.65148898,7.15e-05,2]
[421019219,1776929432491,-1570.65148898,7.15e-05,2]
[421019220,1776929432500,-1570.65148898,7.15e-05,2]
[421019221,1776929432510,-9699.59611427,7.251e-05,2]
[421019222,1776929432520,-9999.99,7.251e-05,2]
[421019223,1776929432529,-332.89,7.251e-05,2]
[421019224,1776929432539,-9999.99,7.251e-05,2]
[421019225,1776929432549,-20914.58,7.251e-05,2]
[421019226,1776929432559,-150.99,7.251e-05,2]
[421019227,1776929432568,-152.0,7.251e-05,7]
[421019228,1776929432577,-152.0,7.251e-05,7]
[421019229,1776929432587,-152.0,7.251e-05,7]
[421019230,1776929432597,-152.0,7.251e-05,7]
[421019231,1776929432607,-152.0,7.251e-05,7]
[421019232,1776929432617,-3023.2843443,7.261e-05,2]
[421019233,1776929432627,-3427.6200342,7.278e-05,2]
[421019234,1776929432637,-1367.8926148,7.283e-05,2]
[421019235,1776929432647,-157.12837852,7.303e-05,2]
[421019236,1776929432656,-1904.842887,7.366e-05,2]
[421019237,1776929432666,-4352.0964743,7.377e-05,2]
[421019238,1776929432675,-2299.3513993,7.381e-05,2]
[421019239,1776929432694,-44268.6285408,7.393e-05,2]
[421019240,1776929432704,-4397.7537398,7.395e-05,2]
[421019241,1776929432714,-250.0,7.404e-05,2]
[421019242,1776929432724,-794.03,7.524e-05,2]
[421019243,1776929432734,-12404.5718666,7.587e-05,2]
[421019244,1776929432743,-150.0,7.6e-05,2]
[421019245,1776929432753,-1266.0,7.739e-05,2]
[421019246,1776929432763,-1219.0,7.739e-05,2]
[421019247,1776929432772,-927.0,7.739e-05,2]
[421019248,1776929432781,-3530.0,7.754e-05,2]
[421019249,1776929432791,-623.0,7.754e-05,2]
[421019250,1776929432802,-156.587,7.796e-05,2]
[421019251,1776929432814,-794.03,7.798e-05,2]